[Event "*** Titled Tuesday Blitz"]
[Site "Chess.com"]
[Date "2020.11.03"]
[Round "3"]
[White "Ariadna_Atreides"]
[Black "indfraeng"]
[Result "0-1"]
[WhiteElo "2103"]
[BlackElo "2336"]
[TimeControl "180+1"]
[EndTime "10:29:42 PST"]
[Termination "indfraeng won on time"]

1. d4 {[%clk 0:03:00.9]} 1... d5 {[%clk 0:03:00.1]} 2. Nf3 {[%clk 0:03:01.1]}
2... Nf6 {[%clk 0:02:58.1]} 3. Bf4 {[%clk 0:02:58.4]} 3... c5 {[%clk 0:02:54.8]}
4. c3 {[%clk 0:02:57.8]} 4... Nc6 {[%clk 0:02:55]} 5. dxc5 {[%clk 0:02:44.5]}
5... a5 {[%clk 0:02:48]} 6. Ne5 {[%clk 0:02:30.6]} 6... e6 {[%clk 0:02:40.7]} 7.
Nxc6 {[%clk 0:02:29.1]} 7... bxc6 {[%clk 0:02:41.6]} 8. b4 {[%clk 0:02:28.7]}
8... axb4 {[%clk 0:02:29.8]} 9. cxb4 {[%clk 0:02:28]} 9... Ne4 {[%clk
0:02:30.7]} 10. Nd2 {[%clk 0:02:16.5]} 10... Qf6 {[%clk 0:02:22.1]} 11. g3
{[%clk 0:01:40.1]} 11... Nc3 {[%clk 0:02:09.6]} 12. Qc1 {[%clk 0:00:57.3]} 12...
Nxa2 {[%clk 0:02:03.6]} 13. Qb1 {[%clk 0:00:51.3]} 13... Nc3 {[%clk 0:02:00.8]}
14. Qc1 {[%clk 0:00:30.6]} 14... Ra6 {[%clk 0:01:31]} 15. e4 {[%clk 0:00:21.5]}
15... Ne2 {[%clk 0:01:27.7]} 16. e5 {[%clk 0:00:16.4]} 16... Nxc1 {[%clk
0:01:26.5]} 17. Bxa6 {[%clk 0:00:14.3]} 17... Qd8 {[%clk 0:01:24.2]} 18. Bxc8
{[%clk 0:00:12.2]} 18... Qxc8 {[%clk 0:01:25.1]} 19. Rxc1 {[%clk 0:00:11.7]}
19... Be7 {[%clk 0:01:24]} 20. O-O {[%clk 0:00:10.9]} 20... O-O {[%clk
0:01:24.5]} 21. Nf3 {[%clk 0:00:10.4]} 21... Qb7 {[%clk 0:01:23.7]} 22. Rb1
{[%clk 0:00:09.9]} 22... Ra8 {[%clk 0:01:24]} 23. Nd4 {[%clk 0:00:09.7]} 23...
Ra4 {[%clk 0:01:23.6]} 24. Bd2 {[%clk 0:00:07.7]} 24... Ra2 {[%clk 0:01:22.4]}
25. Bc3 {[%clk 0:00:06.6]} 25... Qc7 {[%clk 0:01:15.6]} 26. Rfc1 {[%clk
0:00:05.6]} 26... h5 {[%clk 0:01:15.8]} 27. b5 {[%clk 0:00:03.6]} 27... cxb5
{[%clk 0:01:14.7]} 28. Rxb5 {[%clk 0:00:02.8]} 28... Ra8 {[%clk 0:01:07.4]} 29.
c6 {[%clk 0:00:02.2]} 29... Bg5 {[%clk 0:01:02]} 0-1

[Event "*** Titled Tuesday Blitz"]
[Site "Chess.com"]
[Date "2020.11.03"]
[Round "3"]
[White "zmeeed67"]
[Black "IceBelka"]
[Result "1-0"]
[WhiteElo "2351"]
[BlackElo "2117"]
[TimeControl "180+1"]
[EndTime "10:29:45 PST"]
[Termination "zmeeed67 won on time"]

1. e4 {[%clk 0:03:00.9]} 1... c6 {[%clk 0:02:57.9]} 2. d4 {[%clk 0:03:00.2]}
2... d5 {[%clk 0:02:57.1]} 3. e5 {[%clk 0:03:00]} 3... Bf5 {[%clk 0:02:56.5]} 4.
Nf3 {[%clk 0:02:59.7]} 4... e6 {[%clk 0:02:56.2]} 5. Be2 {[%clk 0:02:59.5]} 5...
Nd7 {[%clk 0:02:55.3]} 6. O-O {[%clk 0:02:59.2]} 6... h6 {[%clk 0:02:55.2]} 7.
c3 {[%clk 0:02:58.9]} 7... Ne7 {[%clk 0:02:54.7]} 8. Nbd2 {[%clk 0:02:58.6]}
8... g5 {[%clk 0:02:40.7]} 9. Nb3 {[%clk 0:02:57.4]} 9... Bg7 {[%clk 0:02:37.1]}
10. Be3 {[%clk 0:02:53.8]} 10... Ng6 {[%clk 0:02:33.7]} 11. Qc1 {[%clk
0:02:51.6]} 11... g4 {[%clk 0:02:25.8]} 12. Ne1 {[%clk 0:02:49.7]} 12... h5
{[%clk 0:02:25.6]} 13. Bd3 {[%clk 0:02:48.1]} 13... Bxd3 {[%clk 0:02:02]} 14.
Nxd3 {[%clk 0:02:47.6]} 14... Qc7 {[%clk 0:01:42.9]} 15. Bg5 {[%clk 0:02:41.8]}
15... b6 {[%clk 0:01:33.9]} 16. f4 {[%clk 0:02:18]} 16... gxf3 {[%clk
0:01:26.9]} 17. Rxf3 {[%clk 0:02:17]} 17... c5 {[%clk 0:01:15]} 18. Qf1 {[%clk
0:01:57.4]} 18... Rf8 {[%clk 0:00:13]} 19. Nf4 {[%clk 0:01:53.4]} 19... Nxf4
{[%clk 0:00:12.3]} 20. Rxf4 {[%clk 0:01:51.7]} 20... Nxe5 {[%clk 0:00:11.7]} 21.
dxe5 {[%clk 0:01:45.8]} 21... Bxe5 {[%clk 0:00:12.6]} 22. Rh4 {[%clk 0:01:40.5]}
22... f6 {[%clk 0:00:10]} 23. Bf4 {[%clk 0:01:39.5]} 23... Bxf4 {[%clk
0:00:10.3]} 24. Rxf4 {[%clk 0:01:38]} 24... Qe7 {[%clk 0:00:07.9]} 25. Qf3
{[%clk 0:01:25.4]} 25... O-O-O {[%clk 0:00:05.8]} 26. Rf1 {[%clk 0:01:23.3]}
26... f5 {[%clk 0:00:03.5]} 27. Qxh5 {[%clk 0:01:21.5]} 27... Rg8 {[%clk
0:00:03.7]} 28. Re1 {[%clk 0:01:13.4]} 28... Rg7 {[%clk 0:00:02.6]} 29. Rxf5
{[%clk 0:01:06.3]} 29... Rdg8 {[%clk 0:00:02.4]} 30. g3 {[%clk 0:01:05.4]} 30...
Rh7 {[%clk 0:00:02.6]} 31. Qf3 {[%clk 0:01:02.4]} 1-0

[Event "*** Titled Tuesday Blitz"]
[Site "Chess.com"]
[Date "2020.11.03"]
[Round "3"]
[White "Alexsur1981"]
[Black "SergeyShtyka"]
[Result "1-0"]
[WhiteElo "2779"]
[BlackElo "2371"]
[TimeControl "180+1"]
[EndTime "10:29:46 PST"]
[Termination "Alexsur1981 won by resignation"]

1. e4 {[%clk 0:02:37.5]} 1... c5 {[%clk 0:02:53.9]} 2. Nc3 {[%clk 0:02:36.5]}
2... Nc6 {[%clk 0:02:52.5]} 3. Bb5 {[%clk 0:02:36.6]} 3... Nd4 {[%clk
0:02:50.4]} 4. Nf3 {[%clk 0:02:36.6]} 4... Nxf3+ {[%clk 0:02:47.1]} 5. Qxf3
{[%clk 0:02:35.4]} 5... e6 {[%clk 0:02:47.4]} 6. Qg3 {[%clk 0:02:33.3]} 6... a6
{[%clk 0:02:43.7]} 7. Be2 {[%clk 0:02:32.7]} 7... d6 {[%clk 0:02:42.8]} 8. d3
{[%clk 0:02:31.7]} 8... Nf6 {[%clk 0:02:40]} 9. f4 {[%clk 0:02:30.6]} 9... Be7
{[%clk 0:02:37.8]} 10. O-O {[%clk 0:02:25.2]} 10... O-O {[%clk 0:02:36.4]} 11.
e5 {[%clk 0:02:22]} 11... Ne8 {[%clk 0:02:21.6]} 12. Kh1 {[%clk 0:02:19.4]}
12... d5 {[%clk 0:02:19.9]} 13. Bd2 {[%clk 0:02:16]} 13... b5 {[%clk 0:02:19.8]}
14. Rae1 {[%clk 0:02:15.2]} 14... Bb7 {[%clk 0:02:19.7]} 15. Bf3 {[%clk
0:02:14.4]} 15... Qb6 {[%clk 0:02:09]} 16. Nd1 {[%clk 0:02:13.6]} 16... d4
{[%clk 0:01:40.5]} 17. Bxb7 {[%clk 0:02:10]} 17... Qxb7 {[%clk 0:01:41.4]} 18.
Nf2 {[%clk 0:02:10.3]} 18... Qd5 {[%clk 0:01:34.8]} 19. b3 {[%clk 0:02:09.3]}
19... f5 {[%clk 0:01:34.7]} 20. exf6 {[%clk 0:02:08.7]} 20... Nxf6 {[%clk
0:01:34.9]} 21. Qh3 {[%clk 0:02:07.2]} 21... Kf7 {[%clk 0:01:29.3]} 22. Re5
{[%clk 0:02:02.6]} 22... Qc6 {[%clk 0:01:05.8]} 23. Rfe1 {[%clk 0:02:02.3]}
23... Rfe8 {[%clk 0:01:04]} 24. Rxe6 {[%clk 0:02:00.4]} 24... Qd5 {[%clk
0:01:03.7]} 25. R1e5 {[%clk 0:01:56.8]} 25... Qb7 {[%clk 0:01:03]} 26. Ne4
{[%clk 0:01:53]} 26... Nxe4 {[%clk 0:00:59.2]} 27. Rxe4 {[%clk 0:01:53.9]} 27...
Bf6 {[%clk 0:00:51.1]} 28. Rxe8 {[%clk 0:01:50.5]} 28... Rxe8 {[%clk 0:00:51.2]}
29. Rxe8 {[%clk 0:01:42.7]} 29... Kxe8 {[%clk 0:00:52.1]} 30. Qxh7 {[%clk
0:01:42.4]} 30... c4 {[%clk 0:00:50.5]} 31. Kg1 {[%clk 0:01:39.6]} 31... Qd5
{[%clk 0:00:43.1]} 32. Qe4+ {[%clk 0:01:38.2]} 32... Qxe4 {[%clk 0:00:43.1]} 33.
dxe4 {[%clk 0:01:39.1]} 33... d3 {[%clk 0:00:34.4]} 34. cxd3 {[%clk 0:01:37]}
34... Bd4+ {[%clk 0:00:34.6]} 35. Kf1 {[%clk 0:01:36.7]} 35... cxd3 {[%clk
0:00:34.4]} 36. f5 {[%clk 0:01:29.9]} 36... Ke7 {[%clk 0:00:33.6]} 37. Bf4
{[%clk 0:01:27.2]} 37... a5 {[%clk 0:00:32.6]} 38. e5 {[%clk 0:01:22.4]} 38...
a4 {[%clk 0:00:31.3]} 39. Ke1 {[%clk 0:01:21]} 39... Bc3+ {[%clk 0:00:31]} 40.
Kd1 {[%clk 0:01:20.8]} 40... axb3 {[%clk 0:00:27.2]} 41. axb3 {[%clk 0:01:21.7]}
41... Kd7 {[%clk 0:00:27.4]} 42. g4 {[%clk 0:01:17.8]} 42... Kc6 {[%clk
0:00:27.4]} 43. e6 {[%clk 0:01:17.7]} 43... Bb4 {[%clk 0:00:27]} 44. Be5 {[%clk
0:01:16.1]} 44... Kd5 {[%clk 0:00:25.8]} 45. Bxg7 {[%clk 0:01:15.9]} 45... Ke4
{[%clk 0:00:26]} 46. f6 {[%clk 0:01:15.5]} 1-0

[Event "*** Titled Tuesday Blitz"]
[Site "Chess.com"]
[Date "2020.11.03"]
[Round "3"]
[White "Frogo47"]
[Black "HrvojeZagreb"]
[Result "1-0"]
[WhiteElo "2442"]
[BlackElo "2229"]
[TimeControl "180+1"]
[EndTime "10:29:51 PST"]
[Termination "Frogo47 won by resignation"]

1. d4 {[%clk 0:03:00.9]} 1... e6 {[%clk 0:02:59.6]} 2. c4 {[%clk 0:03:00.7]}
2... f5 {[%clk 0:02:59.8]} 3. Nf3 {[%clk 0:02:59.1]} 3... Nf6 {[%clk 0:03:00.2]}
4. g3 {[%clk 0:02:59.6]} 4... Be7 {[%clk 0:02:59.2]} 5. Bg2 {[%clk 0:03:00.2]}
5... O-O {[%clk 0:02:59.8]} 6. O-O {[%clk 0:03:00.7]} 6... d6 {[%clk 0:03:00.2]}
7. Nc3 {[%clk 0:03:01.1]} 7... Ne4 {[%clk 0:03:00.3]} 8. Qc2 {[%clk 0:02:59.5]}
8... Nxc3 {[%clk 0:03:00.1]} 9. Qxc3 {[%clk 0:03:00.1]} 9... Bf6 {[%clk
0:03:01]} 10. b3 {[%clk 0:03:00.4]} 10... Nc6 {[%clk 0:02:59.1]} 11. Bb2 {[%clk
0:02:57.6]} 11... e5 {[%clk 0:02:58.9]} 12. e3 {[%clk 0:02:54.5]} 12... Qe8
{[%clk 0:02:58.5]} 13. Rad1 {[%clk 0:02:47.8]} 13... Qh5 {[%clk 0:02:58.2]} 14.
dxe5 {[%clk 0:02:44.6]} 14... dxe5 {[%clk 0:02:57.4]} 15. c5 {[%clk 0:02:42.2]}
15... f4 {[%clk 0:02:49.8]} 16. Qc4+ {[%clk 0:02:34.7]} 16... Kh8 {[%clk
0:02:47.9]} 17. exf4 {[%clk 0:02:33.8]} 17... exf4 {[%clk 0:02:41.7]} 18. Bxf6
{[%clk 0:02:33.2]} 18... Rxf6 {[%clk 0:02:42.6]} 19. b4 {[%clk 0:02:23.3]} 19...
Bg4 {[%clk 0:02:37.8]} 20. Rd5 {[%clk 0:02:16.8]} 20... Be6 {[%clk 0:01:44.4]}
21. Rxh5 {[%clk 0:02:12.2]} 21... Bxc4 {[%clk 0:01:44.2]} 22. Rc1 {[%clk
0:02:07]} 22... Bf7 {[%clk 0:01:43.6]} 23. Rh4 {[%clk 0:02:04.7]} 23... Nxb4
{[%clk 0:01:37.8]} 24. a3 {[%clk 0:02:04.2]} 24... Nd3 {[%clk 0:01:36]} 25. Rc3
{[%clk 0:02:04.2]} 25... Rd8 {[%clk 0:01:27.4]} 26. Ng5 {[%clk 0:02:02.6]} 26...
Bg8 {[%clk 0:01:25.9]} 27. Be4 {[%clk 0:02:00.4]} 27... fxg3 {[%clk 0:01:04.9]}
28. Bxd3 {[%clk 0:01:52.1]} 28... gxf2+ {[%clk 0:01:03.8]} 29. Kf1 {[%clk
0:01:52.3]} 29... Rxd3 {[%clk 0:00:55.2]} 30. Rxd3 {[%clk 0:01:51]} 30... h6
{[%clk 0:00:55.4]} 31. Ne4 {[%clk 0:01:44.1]} 31... Bc4 {[%clk 0:00:31.4]} 32.
Nxf6 {[%clk 0:01:40.5]} 32... Bxd3+ {[%clk 0:00:31.5]} 33. Kxf2 {[%clk
0:01:41.1]} 33... gxf6 {[%clk 0:00:32.3]} 34. Rxh6+ {[%clk 0:01:41.1]} 34... Kg7
{[%clk 0:00:32.6]} 35. Rh4 {[%clk 0:01:40.6]} 35... b6 {[%clk 0:00:26.5]} 36.
Rd4 {[%clk 0:01:38.8]} 36... Bf5 {[%clk 0:00:25.9]} 37. cxb6 {[%clk 0:01:37.4]}
37... axb6 {[%clk 0:00:25.4]} 38. Kg3 {[%clk 0:01:32.1]} 38... Kf7 {[%clk
0:00:25.2]} 39. Kf4 {[%clk 0:01:32.2]} 39... Be6 {[%clk 0:00:24.1]} 40. h4
{[%clk 0:01:32.1]} 40... Ke7 {[%clk 0:00:23.4]} 41. h5 {[%clk 0:01:32]} 41...
Bg8 {[%clk 0:00:20.6]} 42. Ra4 {[%clk 0:01:26.6]} 42... Bh7 {[%clk 0:00:18.3]}
43. Ra8 {[%clk 0:01:24.9]} 43... Kf7 {[%clk 0:00:14.6]} 44. Rc8 {[%clk
0:01:24.2]} 44... Kg7 {[%clk 0:00:10]} 45. Rxc7+ {[%clk 0:01:22.8]} 1-0

[Event "*** Titled Tuesday Blitz"]
[Site "Chess.com"]
[Date "2020.11.03"]
[Round "3"]
[White "GMG"]
[Black "Slovak_fighter2000"]
[Result "1-0"]
[WhiteElo "2719"]
[BlackElo "2507"]
[TimeControl "180+1"]
[EndTime "10:29:52 PST"]
[Termination "GMG won by resignation"]

1. Nf3 {[%clk 0:03:00.9]} 1... Nf6 {[%clk 0:02:59.1]} 2. g3 {[%clk 0:03:01.1]}
2... d5 {[%clk 0:02:58.2]} 3. Bg2 {[%clk 0:03:01.2]} 3... c6 {[%clk 0:02:58.4]}
4. O-O {[%clk 0:03:01.7]} 4... Bf5 {[%clk 0:02:57.5]} 5. d3 {[%clk 0:03:01.4]}
5... h6 {[%clk 0:02:57.1]} 6. c4 {[%clk 0:03:01.6]} 6... e6 {[%clk 0:02:56.8]}
7. cxd5 {[%clk 0:03:01.3]} 7... exd5 {[%clk 0:02:57.7]} 8. Qb3 {[%clk
0:03:01.8]} 8... Qb6 {[%clk 0:02:57]} 9. Qc2 {[%clk 0:03:02.5]} 9... Be7 {[%clk
0:02:55.5]} 10. Nc3 {[%clk 0:03:03]} 10... O-O {[%clk 0:02:54.9]} 11. e4 {[%clk
0:03:03.7]} 11... dxe4 {[%clk 0:02:54.9]} 12. dxe4 {[%clk 0:03:04.6]} 12... Bh7
{[%clk 0:02:55.1]} 13. Be3 {[%clk 0:03:05.2]} 13... Qa6 {[%clk 0:02:54]} 14.
Rfd1 {[%clk 0:03:05.6]} 14... Nbd7 {[%clk 0:02:51]} 15. h3 {[%clk 0:03:04.8]}
15... Rad8 {[%clk 0:02:47.8]} 16. Nd4 {[%clk 0:03:01.1]} 16... Rfe8 {[%clk
0:02:41.4]} 17. a3 {[%clk 0:03:00.7]} 17... Bf8 {[%clk 0:02:38.7]} 18. Nf5
{[%clk 0:02:52.2]} 18... Bxf5 {[%clk 0:02:37.3]} 19. exf5 {[%clk 0:02:53.1]}
19... Bc5 {[%clk 0:02:05.9]} 20. Bf1 {[%clk 0:02:50]} 20... b5 {[%clk
0:02:05.5]} 21. Bxc5 {[%clk 0:02:18.3]} 21... Nxc5 {[%clk 0:02:05.2]} 22. Nxb5
{[%clk 0:02:17.8]} 22... cxb5 {[%clk 0:01:54.8]} 23. Qxc5 {[%clk 0:02:17.6]}
23... Rb8 {[%clk 0:01:36.2]} 24. a4 {[%clk 0:02:16.2]} 24... Ne4 {[%clk
0:01:26.2]} 25. Qd4 {[%clk 0:02:01.5]} 25... Rbd8 {[%clk 0:01:06.5]} 26. axb5
{[%clk 0:01:29.7]} 26... Rxd4 {[%clk 0:00:48.8]} 27. bxa6 {[%clk 0:01:29.3]}
27... Rb4 {[%clk 0:00:48.3]} 28. Rd7 {[%clk 0:01:21.6]} 28... Rxb2 {[%clk
0:00:32.8]} 29. Re1 {[%clk 0:01:21.7]} 29... Rb4 {[%clk 0:00:16.7]} 30. Rxa7
{[%clk 0:01:19.7]} 30... Rd8 {[%clk 0:00:13.3]} 31. Rb7 {[%clk 0:01:10.8]} 31...
Ra4 {[%clk 0:00:09.8]} 32. a7 {[%clk 0:01:07.8]} 32... Nc5 {[%clk 0:00:02.9]}
33. Rb8 {[%clk 0:01:07.9]} 33... Rf8 {[%clk 0:00:02.5]} 34. Ree8 {[%clk
0:01:03.7]} 34... Nd7 {[%clk 0:00:02.7]} 35. Rxf8+ {[%clk 0:01:03.3]} 35... Nxf8
{[%clk 0:00:03.6]} 36. a8=Q {[%clk 0:01:03]} 1-0

[Event "*** Titled Tuesday Blitz"]
[Site "Chess.com"]
[Date "2020.11.03"]
[Round "3"]
[White "JosefineHeinemann"]
[Black "PSvidler"]
[Result "0-1"]
[WhiteElo "2596"]
[BlackElo "2893"]
[TimeControl "180+1"]
[EndTime "10:29:53 PST"]
[Termination "PSvidler won by resignation"]

1. e4 {[%clk 0:02:57.3]} 1... c5 {[%clk 0:02:59.5]} 2. Nf3 {[%clk 0:02:55.4]}
2... d6 {[%clk 0:02:59.2]} 3. d4 {[%clk 0:02:53]} 3... cxd4 {[%clk 0:02:59.3]}
4. Nxd4 {[%clk 0:02:53.9]} 4... Nf6 {[%clk 0:02:59.8]} 5. Nc3 {[%clk 0:02:51.5]}
5... a6 {[%clk 0:02:59.6]} 6. f3 {[%clk 0:02:49.7]} 6... e6 {[%clk 0:02:58.5]}
7. Be3 {[%clk 0:02:45.6]} 7... b5 {[%clk 0:02:57.3]} 8. Qd2 {[%clk 0:02:41.3]}
8... b4 {[%clk 0:02:55.8]} 9. Na4 {[%clk 0:02:40.5]} 9... Nbd7 {[%clk
0:02:43.9]} 10. g4 {[%clk 0:02:39.3]} 10... h6 {[%clk 0:02:37]} 11. O-O-O {[%clk
0:02:36.7]} 11... d5 {[%clk 0:02:30.7]} 12. exd5 {[%clk 0:02:12.6]} 12... Nxd5
{[%clk 0:02:30.4]} 13. Bc4 {[%clk 0:02:04.9]} 13... Bb7 {[%clk 0:02:25.2]} 14.
Rhe1 {[%clk 0:01:59.2]} 14... N7f6 {[%clk 0:02:08.5]} 15. Kb1 {[%clk 0:01:48.4]}
15... Qc7 {[%clk 0:02:08.3]} 16. Bb3 {[%clk 0:01:43.3]} 16... O-O-O {[%clk
0:02:03.9]} 17. Bf2 {[%clk 0:01:29.2]} 17... Bd6 {[%clk 0:02:02.4]} 18. h4
{[%clk 0:01:18]} 18... Bf4 {[%clk 0:01:56.9]} 19. Qe2 {[%clk 0:01:13.7]} 19...
Kb8 {[%clk 0:01:56.2]} 20. Bc4 {[%clk 0:01:07.7]} 20... Ne3 {[%clk 0:01:39.6]}
21. Bxe3 {[%clk 0:01:03.4]} 21... Bxe3 {[%clk 0:01:39.6]} 22. Qxe3 {[%clk
0:00:58.6]} 22... Qxc4 {[%clk 0:01:39.4]} 23. Qe5+ {[%clk 0:00:51.8]} 23... Qc7
{[%clk 0:01:36.4]} 24. Nc5 {[%clk 0:00:33.2]} 24... Qxe5 {[%clk 0:01:34.8]} 25.
Rxe5 {[%clk 0:00:34.1]} 25... Nd7 {[%clk 0:01:00.4]} 26. Ndxe6 {[%clk
0:00:22.3]} 26... Nxe5 {[%clk 0:01:00.2]} 27. Rxd8+ {[%clk 0:00:19.9]} 27...
Rxd8 {[%clk 0:00:59.9]} 28. Nxd8 {[%clk 0:00:20.8]} 28... Bxf3 {[%clk
0:01:00.1]} 29. g5 {[%clk 0:00:18.7]} 29... hxg5 {[%clk 0:00:59.2]} 30. hxg5
{[%clk 0:00:19.6]} 30... Kc8 {[%clk 0:00:58.8]} 31. Nxa6 {[%clk 0:00:14.2]}
31... Kxd8 {[%clk 0:00:58.8]} 32. Nxb4 {[%clk 0:00:14.5]} 32... Be4 {[%clk
0:00:56.7]} 33. a4 {[%clk 0:00:13.7]} 33... Nf3 {[%clk 0:00:56.9]} 34. a5 {[%clk
0:00:11.8]} 34... Nxg5 {[%clk 0:00:57.2]} 35. a6 {[%clk 0:00:12.2]} 35... Kc7
{[%clk 0:00:56.9]} 36. Kc1 {[%clk 0:00:11.7]} 36... Nf3 {[%clk 0:00:56.5]} 0-1

[Event "*** Titled Tuesday Blitz"]
[Site "Chess.com"]
[Date "2020.11.03"]
[Round "3"]
[White "Mimsychess"]
[Black "ethylalcohol"]
[Result "1-0"]
[WhiteElo "2331"]
[BlackElo "2096"]
[TimeControl "180+1"]
[EndTime "10:29:55 PST"]
[Termination "Mimsychess won on time"]

1. Nf3 {[%clk 0:02:59.7]} 1... Nf6 {[%clk 0:02:59.2]} 2. c4 {[%clk 0:02:59.7]}
2... g6 {[%clk 0:02:58.9]} 3. Nc3 {[%clk 0:02:58.8]} 3... Bg7 {[%clk 0:02:59.1]}
4. e4 {[%clk 0:02:59.1]} 4... d6 {[%clk 0:02:58.3]} 5. d4 {[%clk 0:02:59.3]}
5... O-O {[%clk 0:02:58.1]} 6. Be2 {[%clk 0:02:57.3]} 6... Nc6 {[%clk
0:02:58.4]} 7. d5 {[%clk 0:02:52.1]} 7... Ne5 {[%clk 0:02:56.6]} 8. Nxe5 {[%clk
0:02:48.9]} 8... dxe5 {[%clk 0:02:57.5]} 9. O-O {[%clk 0:02:49.2]} 9... e6
{[%clk 0:02:56]} 10. Bg5 {[%clk 0:02:47.9]} 10... h6 {[%clk 0:02:54.3]} 11. Bh4
{[%clk 0:02:47.9]} 11... g5 {[%clk 0:02:54.3]} 12. Bg3 {[%clk 0:02:48]} 12...
exd5 {[%clk 0:02:47.7]} 13. cxd5 {[%clk 0:02:42.8]} 13... Ne8 {[%clk 0:02:35.4]}
14. Rc1 {[%clk 0:02:38.9]} 14... Nd6 {[%clk 0:02:35.2]} 15. Bg4 {[%clk
0:02:35.5]} 15... Nxe4 {[%clk 0:01:59.3]} 16. Nxe4 {[%clk 0:02:24.6]} 16... Bxg4
{[%clk 0:01:49.5]} 17. Qxg4 {[%clk 0:02:23.8]} 17... f5 {[%clk 0:01:49.5]} 18.
Qe2 {[%clk 0:02:20]} 18... fxe4 {[%clk 0:01:31.4]} 19. Qxe4 {[%clk 0:02:19.8]}
19... Qd6 {[%clk 0:01:31.7]} 20. Rfe1 {[%clk 0:02:17.2]} 20... Rae8 {[%clk
0:01:24.5]} 21. b4 {[%clk 0:02:13.5]} 21... h5 {[%clk 0:01:20]} 22. h3 {[%clk
0:02:13.1]} 22... h4 {[%clk 0:01:19.8]} 23. Bh2 {[%clk 0:02:11.4]} 23... Qb6
{[%clk 0:01:06.2]} 24. Rc5 {[%clk 0:02:08.8]} 24... a5 {[%clk 0:00:56.6]} 25. a3
{[%clk 0:02:06.6]} 25... axb4 {[%clk 0:00:55.9]} 26. axb4 {[%clk 0:02:07.5]}
26... Ra8 {[%clk 0:00:27.6]} 27. Qc4 {[%clk 0:01:46.9]} 27... Qf6 {[%clk
0:00:19.9]} 28. Rf1 {[%clk 0:01:36.6]} 28... Rf7 {[%clk 0:00:08]} 29. Rxc7
{[%clk 0:01:29.7]} 29... Rxc7 {[%clk 0:00:06.7]} 30. Qxc7 {[%clk 0:01:30.3]}
30... Rf8 {[%clk 0:00:03]} 31. d6 {[%clk 0:01:25.1]} 31... e4 {[%clk 0:00:03]}
32. Qc4+ {[%clk 0:01:17.3]} 32... Kh7 {[%clk 0:00:02.5]} 33. Qxe4+ {[%clk
0:01:17]} 33... Kh6 {[%clk 0:00:02.9]} 34. d7 {[%clk 0:01:11.1]} 34... Rd8
{[%clk 0:00:02.6]} 35. Rd1 {[%clk 0:01:11.2]} 35... Qf7 {[%clk 0:00:01.4]} 36.
Rd6+ {[%clk 0:01:10.2]} 1-0

[Event "*** Titled Tuesday Blitz"]
[Site "Chess.com"]
[Date "2020.11.03"]
[Round "3"]
[White "oskariot"]
[Black "Beca95"]
[Result "0-1"]
[WhiteElo "2713"]
[BlackElo "2960"]
[TimeControl "180+1"]
[EndTime "10:29:57 PST"]
[Termination "Beca95 won by resignation"]

1. e4 {[%clk 0:03:00.9]} 1... g6 {[%clk 0:03:00.1]} 2. d4 {[%clk 0:02:59.2]}
2... Bg7 {[%clk 0:03:00.4]} 3. Nc3 {[%clk 0:02:59.6]} 3... a6 {[%clk 0:03:00.5]}
4. a4 {[%clk 0:02:59.2]} 4... d6 {[%clk 0:02:59.9]} 5. g3 {[%clk 0:02:59.4]}
5... Nc6 {[%clk 0:02:58.3]} 6. Bg2 {[%clk 0:02:59.6]} 6... e5 {[%clk 0:02:58.3]}
7. dxe5 {[%clk 0:02:56.6]} 7... Nxe5 {[%clk 0:02:58]} 8. h3 {[%clk 0:02:47.3]}
8... Nf6 {[%clk 0:02:57.1]} 9. Nge2 {[%clk 0:02:42.6]} 9... O-O {[%clk
0:02:55.9]} 10. f4 {[%clk 0:02:42.9]} 10... Ned7 {[%clk 0:02:54.8]} 11. O-O
{[%clk 0:02:42.9]} 11... Re8 {[%clk 0:02:55.1]} 12. g4 {[%clk 0:02:35.7]} 12...
Nc5 {[%clk 0:02:37.1]} 13. Ng3 {[%clk 0:02:35.7]} 13... h6 {[%clk 0:02:37.4]}
14. Be3 {[%clk 0:02:31.8]} 14... Qe7 {[%clk 0:02:24.6]} 15. Bd4 {[%clk
0:02:26.6]} 15... Ncd7 {[%clk 0:02:21.7]} 16. Qf3 {[%clk 0:02:16.7]} 16... Nxe4
{[%clk 0:01:51.3]} 17. Bxg7 {[%clk 0:02:07.9]} 17... Nd2 {[%clk 0:01:51.2]} 18.
Qf2 {[%clk 0:01:26.9]} 18... Nxf1 {[%clk 0:01:50.9]} 19. Rxf1 {[%clk 0:01:27.8]}
19... Kxg7 {[%clk 0:01:48.3]} 20. Nd5 {[%clk 0:01:28.1]} 20... Qd8 {[%clk
0:01:47.6]} 21. f5 {[%clk 0:01:28.4]} 21... Ne5 {[%clk 0:01:42.4]} 22. f6+
{[%clk 0:01:08]} 22... Kh7 {[%clk 0:01:41.4]} 23. Ne4 {[%clk 0:01:02.5]} 23...
g5 {[%clk 0:00:55.1]} 24. Ng3 {[%clk 0:00:54.8]} 24... Be6 {[%clk 0:00:50.9]}
25. Be4+ {[%clk 0:00:52.2]} 25... Kg8 {[%clk 0:00:50.9]} 26. Nf5 {[%clk
0:00:23.3]} 26... Bxf5 {[%clk 0:00:47.8]} 27. Qxf5 {[%clk 0:00:24.2]} 27... Ng6
{[%clk 0:00:47.9]} 28. Ne7+ {[%clk 0:00:24.7]} 28... Rxe7 {[%clk 0:00:47.1]} 29.
fxe7 {[%clk 0:00:25.6]} 29... Qxe7 {[%clk 0:00:47.3]} 30. Bxb7 {[%clk
0:00:16.4]} 30... Rb8 {[%clk 0:00:46.4]} 31. Bd5 {[%clk 0:00:16.2]} 31... Qe3+
{[%clk 0:00:44.7]} 32. Kg2 {[%clk 0:00:15.7]} 32... Nh4+ {[%clk 0:00:43.9]} 0-1